[Event "Late-Titled-Tuesday-Blitz-July-09-2024"]
[Site "Chess.com"]
[Date "2024.07.09"]
[Round "4"]
[White "Snowball-03"]
[Black "Bauman_Guy"]
[Result "0-1"]
[WhiteElo "2615"]
[BlackElo "2924"]
[TimeControl "180+1"]
[EndTime "14:38:26 PDT"]
[Termination "Bauman_Guy won by resignation"]

1. d4 {[%clk 0:02:59.2]} 1... Nf6 {[%clk 0:02:59.9]} 2. Bg5 {[%clk 0:02:59.1]}
2... c5 {[%clk 0:02:58.6]} 3. Bxf6 {[%clk 0:02:58.9]} 3... gxf6 {[%clk
0:02:57.8]} 4. d5 {[%clk 0:02:59.4]} 4... Qb6 {[%clk 0:02:58.3]} 5. Qc1 {[%clk
0:02:59.7]} 5... f5 {[%clk 0:02:58.5]} 6. c4 {[%clk 0:02:59.5]} 6... Qh6 {[%clk
0:02:58.4]} 7. Qc2 {[%clk 0:02:59.2]} 7... d6 {[%clk 0:02:57.7]} 8. Nc3 {[%clk
0:02:58.9]} 8... Bg7 {[%clk 0:02:57.8]} 9. e3 {[%clk 0:02:58.8]} 9... f4 {[%clk
0:02:54.8]} 10. exf4 {[%clk 0:02:56]} 10... Qxf4 {[%clk 0:02:54.3]} 11. Bd3
{[%clk 0:02:54.2]} 11... Nd7 {[%clk 0:02:53.8]} 12. Nge2 {[%clk 0:02:53.6]}
12... Qh6 {[%clk 0:02:53.4]} 13. f4 {[%clk 0:02:48.4]} 13... a6 {[%clk
0:02:52.1]} 14. O-O {[%clk 0:02:45.5]} 14... O-O {[%clk 0:02:50]} 15. a4 {[%clk
0:02:42.9]} 15... Nf6 {[%clk 0:02:43.1]} 16. Qd2 {[%clk 0:02:31.8]} 16... Kh8
{[%clk 0:02:42.3]} 17. Ne4 {[%clk 0:02:21.8]} 17... Nxe4 {[%clk 0:02:35.2]} 18.
Bxe4 {[%clk 0:02:22.7]} 18... Rg8 {[%clk 0:02:35.3]} 19. Kh1 {[%clk 0:02:20.3]}
19... Bf6 {[%clk 0:02:33.9]} 20. a5 {[%clk 0:02:17.4]} 20... Bd7 {[%clk
0:02:32.5]} 21. Ra3 {[%clk 0:02:15.3]} 21... Rab8 {[%clk 0:02:18]} 22. Rb3
{[%clk 0:02:05.7]} 22... Rg4 {[%clk 0:02:07.3]} 23. Rh3 {[%clk 0:02:00.9]} 23...
Rh4 {[%clk 0:02:07.5]} 24. Rxh4 {[%clk 0:02:01]} 24... Qxh4 {[%clk 0:02:07.7]}
25. g3 {[%clk 0:01:49.1]} 25... Qh5 {[%clk 0:02:06.3]} 26. Bf3 {[%clk
0:01:48.1]} 26... Qg6 {[%clk 0:02:05.6]} 27. Nc3 {[%clk 0:01:46]} 27... b6
{[%clk 0:02:03.7]} 28. axb6 {[%clk 0:01:45.6]} 28... Rxb6 {[%clk 0:02:03.7]} 29.
Qe2 {[%clk 0:01:28.5]} 29... Qg7 {[%clk 0:01:52.2]} 30. Qc2 {[%clk 0:01:24.8]}
30... Rb4 {[%clk 0:01:49.1]} 31. Qe2 {[%clk 0:01:19.6]} 31... a5 {[%clk
0:01:37.3]} 32. g4 {[%clk 0:00:53]} 32... h6 {[%clk 0:01:27.7]} 33. Qf2 {[%clk
0:00:42.6]} 33... Bxc3 {[%clk 0:01:12.5]} 34. bxc3 {[%clk 0:00:42.6]} 34... Rxc4
{[%clk 0:01:13.2]} 35. Qe2 {[%clk 0:00:41.1]} 35... Rxf4 {[%clk 0:01:10.5]} 36.
Qxe7 {[%clk 0:00:41]} 36... Bxg4 {[%clk 0:01:09.4]} 37. Qe8+ {[%clk 0:00:33.3]}
37... Qg8 {[%clk 0:01:06.7]} 38. Qe3 {[%clk 0:00:27]} 38... Qg5 {[%clk
0:01:03.1]} 39. Qe8+ {[%clk 0:00:17.8]} 39... Kg7 {[%clk 0:01:02.4]} 40. Qe2
{[%clk 0:00:18.3]} 40... Rxf3 {[%clk 0:00:57.3]} 41. Rxf3 {[%clk 0:00:16.8]}
41... Qxd5 {[%clk 0:00:48.4]} 0-1

[Event "Late-Titled-Tuesday-Blitz-July-09-2024"]
[Site "Chess.com"]
[Date "2024.07.09"]
[Round "4"]
[White "ChessicallyInclined"]
[Black "Fandorine"]
[Result "0-1"]
[WhiteElo "2739"]
[BlackElo "2932"]
[TimeControl "180+1"]
[EndTime "14:38:27 PDT"]
[Termination "Fandorine won by checkmate"]

1. d4 {[%clk 0:03:00.9]} 1... Nf6 {[%clk 0:02:59.3]} 2. c4 {[%clk 0:03:00.6]}
2... g6 {[%clk 0:02:56.7]} 3. Nf3 {[%clk 0:03:00.5]} 3... Bg7 {[%clk 0:02:57.3]}
4. Nc3 {[%clk 0:02:58.5]} 4... O-O {[%clk 0:02:57.5]} 5. e4 {[%clk 0:02:59]}
5... d6 {[%clk 0:02:57.7]} 6. Be2 {[%clk 0:02:59.3]} 6... e5 {[%clk 0:02:58.1]}
7. Be3 {[%clk 0:02:59.6]} 7... exd4 {[%clk 0:02:55.8]} 8. Nxd4 {[%clk
0:02:58.9]} 8... Re8 {[%clk 0:02:56.4]} 9. f3 {[%clk 0:02:58.8]} 9... c6 {[%clk
0:02:56.7]} 10. Bf2 {[%clk 0:02:58]} 10... d5 {[%clk 0:02:57.3]} 11. exd5 {[%clk
0:02:56.4]} 11... cxd5 {[%clk 0:02:58.2]} 12. O-O {[%clk 0:02:56.3]} 12... Nc6
{[%clk 0:02:58.8]} 13. c5 {[%clk 0:02:56.8]} 13... Nh5 {[%clk 0:02:59.2]} 14.
Qd2 {[%clk 0:02:53.4]} 14... Be5 {[%clk 0:02:57.2]} 15. g3 {[%clk 0:02:51.9]}
15... Ng7 {[%clk 0:02:56.7]} 16. Rfd1 {[%clk 0:02:49.3]} 16... Bf5 {[%clk
0:02:55]} 17. Rac1 {[%clk 0:02:25.3]} 17... Rc8 {[%clk 0:02:28.5]} 18. Ncb5
{[%clk 0:02:05.5]} 18... h5 {[%clk 0:01:59.2]} 19. b4 {[%clk 0:01:43.9]} 19...
h4 {[%clk 0:01:28.8]} 20. g4 {[%clk 0:01:33.4]} 20... Bd7 {[%clk 0:01:28.6]} 21.
Nd6 {[%clk 0:01:28.2]} 21... Nxd4 {[%clk 0:01:21.8]} 22. Bxd4 {[%clk 0:01:21.9]}
22... Bxd4+ {[%clk 0:01:16.4]} 23. Qxd4 {[%clk 0:01:22.8]} 23... Rxe2 {[%clk
0:01:16.7]} 24. Nxc8 {[%clk 0:01:22.9]} 24... Qxc8 {[%clk 0:01:08.3]} 25. Qxd5
{[%clk 0:01:20.2]} 25... Bc6 {[%clk 0:00:51.8]} 26. Qd3 {[%clk 0:00:43.1]} 26...
Qe8 {[%clk 0:00:39.8]} 27. Rd2 {[%clk 0:00:25.4]} 27... Re1+ {[%clk 0:00:28.4]}
28. Rxe1 {[%clk 0:00:25.4]} 28... Qxe1+ {[%clk 0:00:28.9]} 29. Kg2 {[%clk
0:00:26.1]} 29... Ne6 {[%clk 0:00:29.5]} 30. Qd6 {[%clk 0:00:20.9]} 30... h3+
{[%clk 0:00:23.9]} 31. Kxh3 {[%clk 0:00:14]} 31... Ng5+ {[%clk 0:00:24.8]} 32.
Kg2 {[%clk 0:00:10.8]} 32... Bxf3# {[%clk 0:00:25.7]} 0-1

[Event "Late-Titled-Tuesday-Blitz-July-09-2024"]
[Site "Chess.com"]
[Date "2024.07.09"]
[Round "4"]
[White "krzyzan94"]
[Black "biostatistician"]
[Result "1-0"]
[WhiteElo "2754"]
[BlackElo "2553"]
[TimeControl "180+1"]
[EndTime "14:38:31 PDT"]
[Termination "krzyzan94 won by resignation"]

1. e4 {[%clk 0:03:00.9]} 1... e5 {[%clk 0:02:59.4]} 2. Nf3 {[%clk 0:03:00.8]}
2... Nc6 {[%clk 0:02:55.8]} 3. Bc4 {[%clk 0:03:00.5]} 3... Bc5 {[%clk 0:02:55]}
4. Nc3 {[%clk 0:02:59.8]} 4... Nf6 {[%clk 0:02:54]} 5. d3 {[%clk 0:02:57.3]}
5... d6 {[%clk 0:02:53.4]} 6. Na4 {[%clk 0:02:54.7]} 6... Bb6 {[%clk 0:02:50.1]}
7. O-O {[%clk 0:02:48.8]} 7... Be6 {[%clk 0:02:48.7]} 8. Nxb6 {[%clk 0:02:41.3]}
8... axb6 {[%clk 0:02:48.1]} 9. Bb5 {[%clk 0:02:26.3]} 9... Bd7 {[%clk
0:02:42.3]} 10. c3 {[%clk 0:02:23.8]} 10... h6 {[%clk 0:02:39.1]} 11. Ba4 {[%clk
0:02:17.1]} 11... O-O {[%clk 0:02:37.8]} 12. Bc2 {[%clk 0:02:14.5]} 12... Ne7
{[%clk 0:02:33.4]} 13. d4 {[%clk 0:02:12.9]} 13... Ng6 {[%clk 0:02:33.5]} 14.
Re1 {[%clk 0:02:12.9]} 14... Re8 {[%clk 0:02:32.9]} 15. h3 {[%clk 0:02:11.2]}
15... Qe7 {[%clk 0:02:10.4]} 16. a3 {[%clk 0:02:08.6]} 16... Rad8 {[%clk
0:02:08.7]} 17. a4 {[%clk 0:02:01.7]} 17... Bc6 {[%clk 0:01:59.7]} 18. d5 {[%clk
0:01:58.9]} 18... Bd7 {[%clk 0:01:59.5]} 19. Be3 {[%clk 0:01:47.4]} 19... Nh5
{[%clk 0:01:58.6]} 20. Kh2 {[%clk 0:01:41.4]} 20... Nhf4 {[%clk 0:01:58.1]} 21.
Ng1 {[%clk 0:01:42]} 21... Nh8 {[%clk 0:00:59.8]} 22. a5 {[%clk 0:01:31.7]}
22... bxa5 {[%clk 0:00:57.9]} 23. Rxa5 {[%clk 0:01:29.6]} 23... Ra8 {[%clk
0:00:58]} 24. Qa1 {[%clk 0:01:17.4]} 24... Rxa5 {[%clk 0:00:56.4]} 25. Qxa5
{[%clk 0:01:18.3]} 25... b6 {[%clk 0:00:56.7]} 26. Qa7 {[%clk 0:01:12.7]} 26...
Bc8 {[%clk 0:00:51]} 27. Ba4 {[%clk 0:01:08.9]} 27... Bd7 {[%clk 0:00:44]} 28.
Bxd7 {[%clk 0:00:55.5]} 28... Qxd7 {[%clk 0:00:44.9]} 29. Bxb6 {[%clk
0:00:48.7]} 29... Nd3 {[%clk 0:00:24]} 30. Re2 {[%clk 0:00:45.7]} 30... Rc8
{[%clk 0:00:20.5]} 31. Be3 {[%clk 0:00:44.1]} 31... Ng6 {[%clk 0:00:20.2]} 32.
Nf3 {[%clk 0:00:40.4]} 32... Ngf4 {[%clk 0:00:19.7]} 33. Rd2 {[%clk 0:00:38.6]}
33... Qe7 {[%clk 0:00:11.3]} 34. Qa6 {[%clk 0:00:35.8]} 34... Nc1 {[%clk
0:00:07.7]} 35. Qxc8+ {[%clk 0:00:35]} 1-0

[Event "Late-Titled-Tuesday-Blitz-July-09-2024"]
[Site "Chess.com"]
[Date "2024.07.09"]
[Round "4"]
[White "Igor_Janik"]
[Black "mamey78"]
[Result "1-0"]
[WhiteElo "2887"]
[BlackElo "2609"]
[TimeControl "180+1"]
[EndTime "14:38:33 PDT"]
[Termination "Igor_Janik won by resignation"]

1. d4 {[%clk 0:03:00.9]} 1... d5 {[%clk 0:02:59.6]} 2. c4 {[%clk 0:02:58.3]}
2... c6 {[%clk 0:02:59.2]} 3. cxd5 {[%clk 0:02:58.6]} 3... cxd5 {[%clk
0:02:58.6]} 4. Bf4 {[%clk 0:02:59.2]} 4... Nf6 {[%clk 0:02:59]} 5. e3 {[%clk
0:02:59.3]} 5... Nc6 {[%clk 0:02:59.3]} 6. Nc3 {[%clk 0:02:58.1]} 6... a6 {[%clk
0:02:59.6]} 7. Bd3 {[%clk 0:02:58]} 7... Bg4 {[%clk 0:02:56.9]} 8. f3 {[%clk
0:02:53.6]} 8... Bh5 {[%clk 0:02:56.6]} 9. Rc1 {[%clk 0:02:52.6]} 9... e6 {[%clk
0:02:56.7]} 10. Nge2 {[%clk 0:02:50.8]} 10... Bd6 {[%clk 0:02:54.4]} 11. O-O
{[%clk 0:02:47.7]} 11... Bg6 {[%clk 0:02:53.6]} 12. Bxd6 {[%clk 0:02:45.8]}
12... Qxd6 {[%clk 0:02:53.7]} 13. Nf4 {[%clk 0:02:46.5]} 13... O-O {[%clk
0:02:52.9]} 14. Nxg6 {[%clk 0:02:46.6]} 14... hxg6 {[%clk 0:02:52.4]} 15. f4
{[%clk 0:02:47.2]} 15... Rac8 {[%clk 0:02:44.3]} 16. Rf3 {[%clk 0:02:46.3]}
16... b5 {[%clk 0:02:33.2]} 17. Rh3 {[%clk 0:02:45.9]} 17... Ne7 {[%clk
0:02:24]} 18. Qe1 {[%clk 0:02:34.2]} 18... Rfd8 {[%clk 0:02:19.6]} 19. Ne2
{[%clk 0:02:18.9]} 19... Nf5 {[%clk 0:02:12.7]} 20. Rd1 {[%clk 0:02:08.6]} 20...
Rc7 {[%clk 0:01:57.3]} 21. Ng3 {[%clk 0:01:59.9]} 21... Rdc8 {[%clk 0:01:49.9]}
22. Nxf5 {[%clk 0:01:59.7]} 22... exf5 {[%clk 0:01:50.8]} 23. Rf3 {[%clk
0:01:52.5]} 23... Rc6 {[%clk 0:01:37.5]} 24. Rf1 {[%clk 0:01:47.8]} 24... Qe7
{[%clk 0:01:36.5]} 25. h3 {[%clk 0:01:41.3]} 25... Re6 {[%clk 0:01:36.2]} 26.
Rf3 {[%clk 0:01:41.2]} 26... Re8 {[%clk 0:01:36.3]} 27. Kf2 {[%clk 0:01:40.1]}
27... Nh5 {[%clk 0:01:32.3]} 28. g3 {[%clk 0:01:30.9]} 28... g5 {[%clk
0:01:31.8]} 29. Bxf5 {[%clk 0:01:26.3]} 29... gxf4 {[%clk 0:01:25.8]} 30. gxf4
{[%clk 0:01:06.5]} 30... Qh4+ {[%clk 0:01:01.4]} 31. Kf1 {[%clk 0:00:52.1]}
31... Qxe1+ {[%clk 0:00:59]} 32. Rxe1 {[%clk 0:00:52.2]} 32... R6e7 {[%clk
0:00:56.3]} 33. Kf2 {[%clk 0:00:40]} 33... g6 {[%clk 0:00:56.1]} 34. Bd3 {[%clk
0:00:39.9]} 34... f5 {[%clk 0:00:53.6]} 35. Rc1 {[%clk 0:00:39.6]} 35... Kf7
{[%clk 0:00:53.2]} 36. Rc6 {[%clk 0:00:38.9]} 36... Re6 {[%clk 0:00:52.9]} 37.
Rxe6 {[%clk 0:00:38.5]} 37... Rxe6 {[%clk 0:00:53.8]} 38. Ke2 {[%clk 0:00:39.1]}
38... Rc6 {[%clk 0:00:52.3]} 39. Kd2 {[%clk 0:00:39.4]} 39... Nf6 {[%clk
0:00:52.6]} 40. Rf1 {[%clk 0:00:39.6]} 40... Rc8 {[%clk 0:00:51.7]} 41. Rc1
{[%clk 0:00:35.4]} 41... Rh8 {[%clk 0:00:48.3]} 42. Bf1 {[%clk 0:00:35.4]} 42...
Ne4+ {[%clk 0:00:47.7]} 43. Ke1 {[%clk 0:00:35.6]} 43... b4 {[%clk 0:00:36.1]}
44. Bg2 {[%clk 0:00:34.4]} 44... Nf6 {[%clk 0:00:34.4]} 45. Rc7+ {[%clk
0:00:33.9]} 45... Ke6 {[%clk 0:00:33.7]} 46. Rc6+ {[%clk 0:00:34.3]} 46... Kf7
{[%clk 0:00:34.4]} 47. Rxa6 {[%clk 0:00:34]} 47... Rc8 {[%clk 0:00:35.1]} 48.
Kd2 {[%clk 0:00:34.1]} 1-0

[Event "Late-Titled-Tuesday-Blitz-July-09-2024"]
[Site "Chess.com"]
[Date "2024.07.09"]
[Round "4"]
[White "ArtemDyachuk"]
[Black "DanielDardha2005"]
[Result "0-1"]
[WhiteElo "2690"]
[BlackElo "2911"]
[TimeControl "180+1"]
[EndTime "14:38:34 PDT"]
[Termination "DanielDardha2005 won on time"]

1. e4 {[%clk 0:03:00.9]} 1... c5 {[%clk 0:02:56.9]} 2. Nf3 {[%clk 0:03:00.5]}
2... Nc6 {[%clk 0:02:57.4]} 3. Bb5 {[%clk 0:03:00.2]} 3... e6 {[%clk 0:02:57.4]}
4. Bxc6 {[%clk 0:02:59.1]} 4... bxc6 {[%clk 0:02:57.1]} 5. b3 {[%clk 0:02:59.6]}
5... f6 {[%clk 0:02:56.7]} 6. e5 {[%clk 0:02:50.8]} 6... fxe5 {[%clk 0:02:54.6]}
7. Nxe5 {[%clk 0:02:50.6]} 7... Nf6 {[%clk 0:02:53.4]} 8. O-O {[%clk 0:02:49.6]}
8... d6 {[%clk 0:02:53.3]} 9. Nf3 {[%clk 0:02:40.8]} 9... e5 {[%clk 0:02:52.3]}
10. Bb2 {[%clk 0:02:28.1]} 10... Be7 {[%clk 0:02:49.4]} 11. d3 {[%clk
0:02:17.2]} 11... O-O {[%clk 0:02:40.8]} 12. c4 {[%clk 0:02:15.1]} 12... Bg4
{[%clk 0:02:34.2]} 13. h3 {[%clk 0:02:14.7]} 13... Bh5 {[%clk 0:02:24.9]} 14.
Re1 {[%clk 0:02:13.3]} 14... Bg6 {[%clk 0:02:08.3]} 15. Nc3 {[%clk 0:02:03.3]}
15... Nh5 {[%clk 0:02:06.2]} 16. g3 {[%clk 0:01:45.8]} 16... Qd7 {[%clk
0:02:04.4]} 17. Kg2 {[%clk 0:01:45.4]} 17... Rf7 {[%clk 0:01:58.5]} 18. Re3
{[%clk 0:01:41.8]} 18... Raf8 {[%clk 0:01:56.8]} 19. Ne4 {[%clk 0:01:20.1]}
19... h6 {[%clk 0:01:44.5]} 20. Qe2 {[%clk 0:01:09.6]} 20... Nf4+ {[%clk
0:01:08.6]} 21. gxf4 {[%clk 0:01:06.2]} 21... exf4 {[%clk 0:01:09.5]} 22. Nxd6
{[%clk 0:00:38.1]} 22... Bxd6 {[%clk 0:00:53.7]} 23. Re6 {[%clk 0:00:36.8]}
23... Bf5 {[%clk 0:00:49]} 24. Rxd6 {[%clk 0:00:34.9]} 24... Qxd6 {[%clk
0:00:49.8]} 25. Rd1 {[%clk 0:00:21.6]} 25... Re7 {[%clk 0:00:46.1]} 26. Ne5
{[%clk 0:00:17.3]} 26... Rfe8 {[%clk 0:00:44.3]} 27. Re1 {[%clk 0:00:16.1]}
27... Kh7 {[%clk 0:00:35.1]} 28. a4 {[%clk 0:00:01.9]} 28... a6 {[%clk
0:00:33.7]} 29. Qh5 {[%clk 0:00:01.6]} 29... Rxe5 {[%clk 0:00:32.8]} 30. Rxe5
{[%clk 0:00:01.1]} 30... Rxe5 {[%clk 0:00:33.7]} 0-1

[Event "Late-Titled-Tuesday-Blitz-July-09-2024"]
[Site "Chess.com"]
[Date "2024.07.09"]
[Round "4"]
[White "mac0504"]
[Black "Slovak_fighter2000"]
[Result "1-0"]
[WhiteElo "2765"]
[BlackElo "2553"]
[TimeControl "180+1"]
[EndTime "14:38:36 PDT"]
[Termination "mac0504 won on time"]

1. c4 {[%clk 0:03:00.9]} 1... e5 {[%clk 0:02:59.7]} 2. Nc3 {[%clk 0:03:01.1]}
2... Nf6 {[%clk 0:02:59.8]} 3. e3 {[%clk 0:03:01.7]} 3... Bb4 {[%clk 0:02:54.7]}
4. Nge2 {[%clk 0:03:01.3]} 4... O-O {[%clk 0:02:52.9]} 5. a3 {[%clk 0:03:01.6]}
5... Bxc3 {[%clk 0:02:51.2]} 6. Nxc3 {[%clk 0:03:02.5]} 6... d6 {[%clk 0:02:51]}
7. d3 {[%clk 0:02:59.4]} 7... Nc6 {[%clk 0:02:51.2]} 8. Be2 {[%clk 0:02:59.8]}
8... Bf5 {[%clk 0:02:50.1]} 9. O-O {[%clk 0:03:00.2]} 9... Bg6 {[%clk
0:02:48.3]} 10. b4 {[%clk 0:02:59.9]} 10... d5 {[%clk 0:02:45.2]} 11. cxd5
{[%clk 0:02:59.3]} 11... Nxd5 {[%clk 0:02:46.1]} 12. Bb2 {[%clk 0:02:59.1]}
12... Nxc3 {[%clk 0:02:43.1]} 13. Bxc3 {[%clk 0:02:59.2]} 13... a6 {[%clk
0:02:42.9]} 14. Qc2 {[%clk 0:02:52]} 14... Qd6 {[%clk 0:02:40.7]} 15. Rfd1
{[%clk 0:02:51.9]} 15... Rad8 {[%clk 0:02:36.3]} 16. Rac1 {[%clk 0:02:48.4]}
16... f6 {[%clk 0:02:28.2]} 17. Qb2 {[%clk 0:02:47.9]} 17... Kh8 {[%clk
0:02:26.1]} 18. a4 {[%clk 0:02:47.9]} 18... Ne7 {[%clk 0:02:15.6]} 19. b5 {[%clk
0:02:45.4]} 19... axb5 {[%clk 0:02:12.7]} 20. Qxb5 {[%clk 0:02:38.8]} 20... b6
{[%clk 0:01:53.7]} 21. Bb4 {[%clk 0:02:37.2]} 21... c5 {[%clk 0:01:53.5]} 22.
Be1 {[%clk 0:02:24]} 22... Be8 {[%clk 0:01:43.2]} 23. Qb3 {[%clk 0:02:18.8]}
23... Ra8 {[%clk 0:01:34.9]} 24. Ra1 {[%clk 0:01:58.5]} 24... Qc6 {[%clk
0:01:06.3]} 25. Bf3 {[%clk 0:01:55.1]} 25... Qc8 {[%clk 0:00:58.3]} 26. Bxa8
{[%clk 0:01:54.7]} 26... Qxa8 {[%clk 0:00:59.2]} 27. Qxb6 {[%clk 0:01:55.1]}
27... Bc6 {[%clk 0:00:54.2]} 28. e4 {[%clk 0:01:52.7]} 28... Rc8 {[%clk
0:00:47.1]} 29. Qxc5 {[%clk 0:01:49.8]} 29... Ng6 {[%clk 0:00:46.1]} 30. Qe3
{[%clk 0:01:41.8]} 30... Bxa4 {[%clk 0:00:37.8]} 31. Rdc1 {[%clk 0:01:34.5]}
31... Rxc1 {[%clk 0:00:33.7]} 32. Qxc1 {[%clk 0:01:35.4]} 32... Qe8 {[%clk
0:00:29.9]} 33. Qc4 {[%clk 0:01:21.9]} 33... Bc6 {[%clk 0:00:18.7]} 34. Ra6
{[%clk 0:01:16.5]} 34... Bd7 {[%clk 0:00:16.6]} 35. Ra7 {[%clk 0:01:02.6]} 35...
h6 {[%clk 0:00:09.3]} 36. Qc7 {[%clk 0:01:00.2]} 36... Nf8 {[%clk 0:00:06.2]}
37. Bb4 {[%clk 0:01:00.2]} 37... Qh5 {[%clk 0:00:04]} 38. h3 {[%clk 0:00:43.3]}
38... Qd1+ {[%clk 0:00:02.3]} 39. Kh2 {[%clk 0:00:43.5]} 1-0

[Event "Late-Titled-Tuesday-Blitz-July-09-2024"]
[Site "Chess.com"]
[Date "2024.07.09"]
[Round "4"]
[White "Sacbutt"]
[Black "MKlose11"]
[Result "0-1"]
[WhiteElo "2329"]
[BlackElo "2664"]
[TimeControl "180+1"]
[EndTime "14:38:38 PDT"]
[Termination "MKlose11 won on time"]

1. d4 {[%clk 0:02:53.5]} 1... Nf6 {[%clk 0:02:58.7]} 2. c4 {[%clk 0:02:53.5]}
2... c5 {[%clk 0:02:58.4]} 3. d5 {[%clk 0:02:53.6]} 3... b5 {[%clk 0:02:58]} 4.
cxb5 {[%clk 0:02:54.5]} 4... a6 {[%clk 0:02:57.7]} 5. bxa6 {[%clk 0:02:55.1]}
5... Bxa6 {[%clk 0:02:57.4]} 6. Nc3 {[%clk 0:02:55.7]} 6... d6 {[%clk 0:02:57]}
7. Nf3 {[%clk 0:02:56.3]} 7... g6 {[%clk 0:02:45]} 8. g3 {[%clk 0:02:56.5]} 8...
Bg7 {[%clk 0:02:44.4]} 9. Bg2 {[%clk 0:02:57.1]} 9... O-O {[%clk 0:02:45.2]} 10.
O-O {[%clk 0:02:57.6]} 10... Nbd7 {[%clk 0:02:46]} 11. Qc2 {[%clk 0:02:57.8]}
11... Qb6 {[%clk 0:02:46.2]} 12. Rd1 {[%clk 0:02:57.9]} 12... Rfb8 {[%clk
0:02:46.3]} 13. Rb1 {[%clk 0:02:53]} 13... Ne8 {[%clk 0:02:46.1]} 14. b3 {[%clk
0:02:48.5]} 14... Nc7 {[%clk 0:02:45.4]} 15. Bb2 {[%clk 0:02:45.5]} 15... Nb5
{[%clk 0:02:45.2]} 16. Nxb5 {[%clk 0:02:36.7]} 16... Bxb5 {[%clk 0:02:46.1]} 17.
Bxg7 {[%clk 0:02:32.1]} 17... Kxg7 {[%clk 0:02:45.8]} 18. a4 {[%clk 0:02:19.6]}
18... Ba6 {[%clk 0:02:44.8]} 19. e4 {[%clk 0:01:59.8]} 19... f6 {[%clk
0:02:36.3]} 20. h4 {[%clk 0:01:39.5]} 20... Qb4 {[%clk 0:02:35.2]} 21. Kh2
{[%clk 0:01:27.6]} 21... Rb7 {[%clk 0:02:31.2]} 22. Rdc1 {[%clk 0:01:16]} 22...
Rab8 {[%clk 0:02:31]} 23. h5 {[%clk 0:01:07.2]} 23... c4 {[%clk 0:02:26.6]} 24.
bxc4 {[%clk 0:00:56]} 24... Qxb1 {[%clk 0:02:24.3]} 25. Rxb1 {[%clk 0:00:56]}
25... Rxb1 {[%clk 0:02:25.2]} 26. hxg6 {[%clk 0:00:53.9]} 26... hxg6 {[%clk
0:02:24.2]} 27. Nd4 {[%clk 0:00:50.1]} 27... Nc5 {[%clk 0:02:21.5]} 28. Ne6+
{[%clk 0:00:44.1]} 28... Nxe6 {[%clk 0:02:18.5]} 29. dxe6 {[%clk 0:00:45]} 29...
R1b2 {[%clk 0:02:13.8]} 30. Qc3 {[%clk 0:00:42.7]} 30... Rxf2 {[%clk 0:02:09]}
31. Qa5 {[%clk 0:00:28.7]} 31... Bxc4 {[%clk 0:01:48.8]} 32. Qc7 {[%clk
0:00:28.3]} 32... Rbb2 {[%clk 0:01:48.8]} 33. Qxc4 {[%clk 0:00:21.2]} 33...
Rxg2+ {[%clk 0:01:48.4]} 34. Kh3 {[%clk 0:00:20.4]} 34... f5 {[%clk 0:01:40]}
35. exf5 {[%clk 0:00:19.4]} 35... gxf5 {[%clk 0:01:39.1]} 36. Qd4+ {[%clk
0:00:19.7]} 36... Kg6 {[%clk 0:01:38.3]} 37. g4 {[%clk 0:00:08.6]} 37... Rh2+
{[%clk 0:01:31.9]} 38. Kg3 {[%clk 0:00:08.9]} 38... Rbg2+ {[%clk 0:01:31.4]} 39.
Kf3 {[%clk 0:00:09.3]} 39... Rxg4 {[%clk 0:01:30.3]} 40. Qa7 {[%clk 0:00:07.5]}
40... Rh3+ {[%clk 0:01:29.4]} 41. Kf2 {[%clk 0:00:07.7]} 41... Kf6 {[%clk
0:01:25.9]} 42. a5 {[%clk 0:00:07]} 42... Ra4 {[%clk 0:01:22]} 43. Qc7 {[%clk
0:00:04.7]} 43... Ra2+ {[%clk 0:01:17.3]} 44. Kg1 {[%clk 0:00:04]} 44... Rb3
{[%clk 0:01:13.5]} 45. Qc1 {[%clk 0:00:03.7]} 45... Rba3 {[%clk 0:01:09.6]} 46.
Qc4 {[%clk 0:00:03.8]} 46... Rxa5 {[%clk 0:01:06.8]} 47. Qd4+ {[%clk 0:00:03.9]}
47... Re5 {[%clk 0:01:05.5]} 48. Kf1 {[%clk 0:00:02]} 48... Re2 {[%clk
0:01:02.2]} 0-1